[Event "14th Margaryan Memorial-GM 2024"]
[Site "Yerevan"]
[Date "2024.01.12"]
[Round "5.3"]
[White "Sorensen, Hampus"]
[Black "Movahed, Sina"]
[Result "1/2-1/2"]
[ECO "B53"]
[WhiteElo "2458"]
[BlackElo "2450"]
[Annotator "RC"]
[PlyCount "304"]
[EventDate "2024.01.08"]
[EventType "tourn"]
[EventCountry "ARM"]
[SourceTitle "playchess.com"]
[Source "ChessBase"]
[SourceQuality "1"]
[TimeControl "40/5400+30:1800+30"]

1. e4 {[%emt 0:00:09]} c5 {[%emt 0:07:38]} 2. Nf3 {[%emt 0:00:07]} d6 {[%emt 0:00:06]} 3. d4 {[%emt 0:00:14]} cxd4 {[%emt 0:00:06]} 4. Qxd4 {[%emt 0:00:06]} Nc6 {[%emt 0:01:02]} 5. Bb5 {[%emt 0:00:10]} Bd7 {[%emt 0:00:07]} 6. Qd3 {[%emt 0:00:21]} Nf6 {[%emt 0:02:37]} 7. c4 {[%emt 0:00:26]} a6 {[%emt 0:03:19]} 8. Bxc6 {[%emt 0:00:26]} Bxc6 {[%emt 0:00:08]} 9. Nc3 {[%emt 0:00:13]} e6 {[%emt 0:00:13]} 10. O-O {[%emt 0:04:06]} Be7 {[%emt 0:00:05]} 11. Nd4 {[%emt 0:05:58]} Rc8 {[%emt 0:01:32]} 12. h3 {[%emt 0:00:15]} O-O {[%emt 0:00:35]} 13. Be3 {[%emt 0:01:14]} Nd7 {[%emt 0:12:13]} 14. Rac1 {[%emt 0:05:44]} Qa5 {[%emt 0:05:59]} 15. b3 {[%emt 0:22:31]} Rfe8 {[%emt 0:01:43]} 16. Rfd1 {[%emt 0:01:34]} Bf8 {[%emt 0:01:36]} 17. Qb1 {[%emt 0:07:25]} Qh5 {[%emt 0:02:48]} 18. Nce2 {[%emt 0:00:32]} Nf6 {[%emt 0:01:47]} 19. Nxc6 {[%emt 0:05:21]} Qxe2 {[%emt 0:05:00]} 20. Nd4 {[%emt 0:01:04]} Qh5 {[%emt 0:00:02]} 21. Nf3 {[%emt 0:00:18]} b5 {[%emt 0:05:53]} 22. Bf4 {[%emt 0:05:25]} bxc4 {[%emt 0:06:19]} 23. bxc4 {[%emt 0:00:14]} e5 {[%emt 0:10:51]} 24. Be3 {[%emt 0:04:59]} Qg6 {[%emt 0:01:15]} 25. Nd2 {[%emt 0:00:18]} Rc6 {[%emt 0:00:30]} 26. Qd3 {[%emt 0:02:50]} Rec8 {[%emt 0:01:07]} 27. Rb1 {[%emt 0:00:26]} Nd7 {[%emt 0:00:46]} 28. Rb7 {[%emt 0:12:57]} Qe6 {[%emt 0:00:31]} 29. Rdb1 {[%emt 0:02:14]} Qe8 {[%emt 0:10:15]} 30. Ra7 {[%emt 0:05:07]} R8c7 {[%emt 0:00:26]} 31. Rxc7 {[%emt 0:01:47]} Rxc7 {[%emt 0:00:04]} 32. c5 {[%emt 0:01:49]} Qc8 {[%emt 0:01:12]} 33. cxd6 {[%emt 0:01:35]} Rc6 {[%emt 0:01:22]} 34. Nb3 {[%emt 0:03:38]} Rxd6 {[%emt 0:00:47]} 35. Qe2 {[%emt 0:00:54]} h6 {[%emt 0:00:42]} 36. Rc1 {[%emt 0:00:54]} Qa8 {[%emt 0:02:16]} 37. Rc4 {[%emt 0:00:11]} Qb7 {[%emt 0:01:30]} 38. Qc2 {[%emt 0:00:32]} Kh7 {[%emt 0:05:58]} 39. Nd2 {[%emt 0:02:09]} Be7 {[%emt 0:03:19]} 40. Rc7 {[%emt 0:00:00]} Qb8 {[%emt 0:00:00]} 41. Qc4 {[%emt 0:18:13]} Qe8 {[%emt 0:24:51]} 42. Ra7 {[%emt 0:02:47]} Bg5 {[%emt 0:06:26]} 43. Bxg5 {[%emt 0:02:52]} hxg5 {[%emt 0:00:02]} 44. Nf1 {[%emt 0:01:45]} Qe6 {[%emt 0:03:29]} 45. Qxe6 {[%emt 0:01:05]} fxe6 {[%emt 0:00:02]} 46. Rc7 {[%emt 0:02:22]} Nf6 {[%emt 0:01:06]} 47. f3 {[%emt 0:01:20]} Nh5 {[%emt 0:01:26]} 48. g3 {[%emt 0:00:05]} Rd3 {[%emt 0:00:13]} 49. Kf2 {[%emt 0:00:17]} Nf6 {[%emt 0:00:29]} 50. Rc2 {[%emt 0:00:46]} Ne8 {[%emt 0:00:25]} 51. Rd2 {[%emt 0:01:58]} Rc3 {[%emt 0:01:27]} 52. Ne3 {[%emt 0:00:10]} Rc5 {[%emt 0:01:18]} 53. Ke2 {[%emt 0:00:41]} Nf6 {[%emt 0:00:38]} 54. g4 {[%emt 0:02:06]} Kg6 {[%emt 0:01:06]} 55. Nd1 {[%emt 0:02:27]} Kf7 {[%emt 0:00:11]} 56. Nf2 {[%emt 0:00:26]} Rb5 {[%emt 0:00:18]} 57. Rc2 {[%emt 0:00:47]} Ke7 {[%emt 0:00:08]} 58. Nd3 {[%emt 0:01:38]} Kd6 {[%emt 0:00:18]} 59. Kd2 {[%emt 0:00:49]} Ra5 {[%emt 0:00:28]} 60. Nb2 {[%emt 0:00:21]} Rb5 {[%emt 0:01:02]} 61. a4 {[%emt 0:00:37]} Rb4 {[%emt 0:00:34]} 62. Kc3 {[%emt 0:00:20]} Rd4 {[%emt 0:00:28]} 63. Nc4+ {[%emt 0:00:40]} Ke7 {[%emt 0:00:29]} 64. Rb2 {[%emt 0:00:38]} Rd7 {[%emt 0:00:42]} 65. Nxe5 {[%emt 0:00:27]} Rc7+ {[%emt 0:00:09]} 66. Kd4 {[%emt 0:00:20]} Nd7 {[%emt 0:00:43]} 67. Nd3 {[%emt 0:01:06]} Kd6 {[%emt 0:00:26]} 68. e5+ {[%emt 0:00:10]} Ke7 {[%emt 0:00:01]} 69. a5 {[%emt 0:00:18]} Kf7 {[%emt 0:00:36]} 70. Rb1 {[%emt 0:01:04]} Ke7 {[%emt 0:00:24]} 71. Rb2 {[%emt 0:00:01]} Kf7 {[%emt 0:00:21]} 72. Rb4 {[%emt 0:00:15]} Ke7 {[%emt 0:00:21]} 73. Rc4 {[%emt 0:00:06]} Rb7 {[%emt 0:00:05]} 74. Rc6 {[%emt 0:00:34]} Rb5 {[%emt 0:00:05]} 75. Rc7 {[%emt 0:01:22]} Rd5+ {[%emt 0:00:29]} 76. Ke4 {[%emt 0:00:20]} Rxa5 {[%emt 0:00:26]} 77. Ra7 {[%emt 0:00:34]} Ke8 {[%emt 0:01:38]} 78. Ra8+ {[%emt 0:00:08]} Kf7 {[%emt 0:00:25]} 79. Ra7 {[%emt 0:00:09]} Ke7 {[%emt 0:00:05]} 80. f4 {[%emt 0:00:42]} gxf4 {[%emt 0:00:10]} 81. Kxf4 {[%emt 0:00:13]} Rd5 {[%emt 0:00:54]} 82. Ke4 {[%emt 0:00:30]} g5 {[%emt 0:00:15]} 83. Ra8 {[%emt 0:00:53]} Kf7 {[%emt 0:00:34]} 84. Ra7 {[%emt 0:00:54]} a5 {[%emt 0:00:13]} 85. Ra8 {[%emt 0:00:39]} a4 {[%emt 0:00:39]} 86. Ra7 {[%emt 0:00:01]} Ke8 {[%emt 0:00:28]} 87. Ra8+ {[%emt 0:00:41]} Ke7 {[%emt 0:00:05]} 88. Nb4 {[%emt 0:00:34]} Rxe5+ {[%emt 0:00:24]} 89. Kd4 {[%emt 0:00:26]} Re1 {[%emt 0:00:49]} 90. Rxa4 {[%emt 0:00:42]} e5+ {[%emt 0:00:42]} 91. Kc3 {[%emt 0:00:34]} Re3+ {[%emt 0:00:22]} 92. Kd2 {[%emt 0:00:00]} Rxh3 {[%emt 0:00:04]} 93. Ra5 {[%emt 0:01:10]} Rb3 {[%emt 0:01:41]} 94. Nd5+ {[%emt 0:00:31]} Kd6 {[%emt 0:00:21]} 95. Ne3 {[%emt 0:00:13]} Nb6 {[%emt 0:01:00]} 96. Ra7 {[%emt 0:00:13]} Kc5 {[%emt 0:01:22]} 97. Rg7 {[%emt 0:01:02]} Kd4 {[%emt 0:00:21]} 98. Nf5+ {[%emt 0:00:08]} Ke4 {[%emt 0:00:09]} 99. Rxg5 {[%emt 0:00:10]} Kf4 {[%emt 0:00:46]} 100. Rg8 {[%emt 0:00:11]} Nd5 {[%emt 0:00:17]} 101. Rf8 {[%emt 0:00:34]} Kxg4 {[%emt 0:00:19]} 102. Nd6 {[%emt 0:00:12]} Rb2+ {[%emt 0:00:32]} 103. Kc1 {[%emt 0:00:27]} Rb4 {[%emt 0:00:19]} 104. Kc2 {[%emt 0:01:14]} e4 {[%emt 0:00:21]} 105. Nxe4 {[%emt 0:00:13]} Rxe4 {[%emt 0:00:01]} 106. Kd3 {[%emt 0:00:13]} Re7 {[%emt 0:00:16]} 107. Kc4 {[%emt 0:00:25]} Nf4 {[%emt 0:00:15]} 108. Ra8 {[%emt 0:00:16]} Kf5 {[%emt 0:00:08]} 109. Ra1 {[%emt 0:00:10]} Re4+ {[%emt 0:00:19]} 110. Kc5 {[%emt 0:00:26]} Ke5 {[%emt 0:00:11]} 111. Rh1 {[%emt 0:00:09]} Ne6+ {[%emt 0:00:11]} 112. Kb5 {[%emt 0:00:09]} Rd4 {[%emt 0:00:09]} 113. Rh5+ {[%emt 0:00:07]} Kd6 {[%emt 0:00:11]} 114. Rh6 {[%emt 0:00:11]} Rf4 {[%emt 0:00:22]} 115. Rh1 {[%emt 0:00:24]} Nc7+ {[%emt 0:00:39]} 116. Ka5 {[%emt 0:00:17]} Nd5 {[%emt 0:00:16]} 117. Rc1 {[%emt 0:00:55]} Rf2 {[%emt 0:00:30]} 118. Ka4 {[%emt 0:00:23]} Rb2 {[%emt 0:00:34]} 119. Ka3 {[%emt 0:00:20]} Rb8 {[%emt 0:00:13]} 120. Rh1 {[%emt 0:00:22]} Kc5 {[%emt 0:00:25]} 121. Rh4 {[%emt 0:00:52]} Ne3 {[%emt 0:00:20]} 122. Ka2 {[%emt 0:00:16]} Nc4 {[%emt 0:00:19]} 123. Rh3 {[%emt 0:01:07]} Rb2+ {[%emt 0:00:10]} 124. Ka1 {[%emt 0:00:02]} Kb4 {[%emt 0:00:10]} 125. Rh8 {[%emt 0:01:22]} Rg2 {[%emt 0:00:11]} 126. Kb1 {[%emt 0:00:24]} Kc3 {[%emt 0:01:15]} 127. Rh3+ {[%emt 0:00:17]} Kd2 {[%emt 0:00:09]} 128. Rh8 {[%emt 0:00:28]} Rg3 {[%emt 0:00:50]} 129. Rd8+ {[%emt 0:01:11]} Kc3 {[%emt 0:00:17]} 130. Rc8 {[%emt 0:00:42]} Rg1+ {[%emt 0:01:19]} 131. Ka2 {[%emt 0:00:01]} Rg7 {[%emt 0:00:18]} 132. Ra8 {[%emt 0:02:19]} Rf7 {[%emt 0:01:48]} 133. Kb1 {[%emt 0:00:53]} Rg7 {[%emt 0:01:32]} 134. Ka2 {[%emt 0:00:17]} Rb7 {[%emt 0:01:02]} 135. Ka1 {[%emt 0:00:24]} Kc2 {[%emt 0:00:46]} 136. Ka2 {[%emt 0:00:57]} Kd2 {[%emt 0:01:13]} 137. Rh8 {[%emt 0:00:28]} Rb2+ {[%emt 0:00:41]} 138. Ka1 {[%emt 0:00:01]} Kc3 {[%emt 0:00:11]} 139. Rh3+ {[%emt 0:00:24]} Kb4 {[%emt 0:00:23]} 140. Rh8 {[%emt 0:00:28]} Rc2 {[%emt 0:00:28]} 141. Kb1 {[%emt 0:00:34]} Na3+ {[%emt 0:00:47]} 142. Ka1 {[%emt 0:00:01]} Nb5 {[%emt 0:00:31]} 143. Kb1 {[%emt 0:01:19]} Kb3 {[%emt 0:00:36]} 144. Rb8 {[%emt 0:00:04]} Rc5 {[%emt 0:00:08]} 145. Rb6 {[%emt 0:00:29]} Kc3 {[%emt 0:00:17]} 146. Rh6 {[%emt 0:00:26]} Nd4 {[%emt 0:00:39]} 147. Rh3+ {[%emt 0:00:12]} Kd2 {[%emt 0:00:13]} 148. Rh8 {[%emt 0:00:52]} Kc3 {[%emt 0:01:38]} 149. Rh3+ {[%emt 0:00:05]} Kc4 {[%emt 0:00:05]} 150. Kc1 {[%emt 0:00:23]} Ra5 {[%emt 0:00:13]} 151. Rh8 {[%emt 0:00:20]} Ra2 {[%emt 0:00:13]} 152. Kd1 {[%emt 0:00:27]} Kc3 {[%emt 0:02:32]} 1/2-1/2

[Event "14th Margaryan Memorial-GM 2024"]
[Site "Yerevan"]
[Date "2024.01.12"]
[Round "5.5"]
[White "Ivanov, Sergey"]
[Black "Davtyan, Arsen"]
[Result "0-1"]
[ECO "E51"]
[WhiteElo "2462"]
[BlackElo "2392"]
[Annotator "RC"]
[PlyCount "90"]
[EventDate "2024.01.08"]
[EventType "tourn"]
[EventCountry "ARM"]
[SourceTitle "playchess.com"]
[Source "ChessBase"]
[SourceQuality "1"]
[TimeControl "40/5400+30:1800+30"]

1. d4 {[%emt 0:00:03]} Nf6 {[%emt 0:07:29]} 2. c4 {[%emt 0:00:08]} e6 {[%emt 0:00:04]} 3. Nf3 {[%emt 0:00:14]} d5 {[%emt 0:00:17]} 4. Nc3 {[%emt 0:00:09]} Bb4 {[%emt 0:00:57]} 5. e3 {[%emt 0:00:30]} O-O {[%emt 0:00:30]} 6. Bd2 {[%emt 0:00:14]} b6 {[%emt 0:00:18]} 7. cxd5 {[%emt 0:00:48]} exd5 {[%emt 0:00:04]} 8. Rc1 {[%emt 0:00:08]} Bb7 {[%emt 0:01:18]} 9. Bd3 {[%emt 0:00:34]} Re8 {[%emt 0:00:43]} 10. O-O {[%emt 0:00:28]} Bf8 {[%emt 0:00:29]} 11. Ne5 {[%emt 0:00:45]} c5 {[%emt 0:00:50]} 12. f4 {[%emt 0:01:31]} Nc6 {[%emt 0:00:17]} 13. Ne2 {[%emt 0:06:42]} Rc8 {[%emt 0:09:29]} 14. Be1 {[%emt 0:01:47]} Qd6 {[%emt 0:04:28]} 15. Bh4 {[%emt 0:06:04]} a6 {[%emt 0:04:45]} 16. Ng3 {[%emt 0:07:31]} cxd4 {[%emt 0:16:19]} 17. Nf5 {[%emt 0:03:43]} Qe6 {[%emt 0:00:06]} 18. Rxc6 {[%emt 0:16:12]} Bxc6 {[%emt 0:06:40]} 19. Nxd4 {[%emt 0:00:21]} Qd6 {[%emt 0:00:11]} 20. Bxf6 {[%emt 0:04:25]} Qxf6 {[%emt 0:00:26]} 21. Bxa6 {[%emt 0:10:05]} Ra8 {[%emt 0:05:20]} 22. Qd3 {[%emt 0:00:37]} b5 {[%emt 0:12:32]} 23. Bxb5 {[%emt 0:00:15]} Bxb5 {[%emt 0:00:28]} 24. Qxb5 {[%emt 0:00:10]} Qa6 {[%emt 0:08:15]} 25. Qd7 {[%emt 0:06:15]} Qa7 {[%emt 0:02:47]} 26. Qxd5 {[%emt 0:06:45]} Qxa2 {[%emt 0:02:57]} 27. b3 {[%emt 0:01:06]} Qa7 {[%emt 0:00:30]} 28. h3 {[%emt 0:01:25]} Rad8 {[%emt 0:03:23]} 29. Qc4 {[%emt 0:01:42]} Rc8 {[%emt 0:00:22]} 30. Qd5 {[%emt 0:02:15]} Rcd8 {[%emt 0:03:59]} 31. Qf3 {[%emt 0:07:22]} Qc5 {[%emt 0:05:08]} 32. b4 {[%emt 0:04:38]} Qc3 {[%emt 0:02:26]} 33. b5 {[%emt 0:00:41]} f6 {[%emt 0:01:17]} 34. Ng4 {[%emt 0:03:38]} h5 {[%emt 0:00:32]} 35. Qc6 {[%emt 0:01:45]} Rxe3 {[%emt 0:01:41]} 36. Qxc3 {[%emt 0:03:00]} Rxc3 {[%emt 0:00:01]} 37. Nc6 {[%emt 0:00:07]} Rd5 {[%emt 0:00:49]} 38. Nf2 {[%emt 0:01:29]} Rxb5 {[%emt 0:00:09]} 39. Nd4 {[%emt 0:00:07]} Rd5 {[%emt 0:01:02]} 40. Nf3 {[%emt 0:00:00]} Rc2 {[%emt 0:00:00]} 41. Ne4 {[%emt 0:16:46]} Ba3 {[%emt 0:19:27]} 42. Kh2 {[%emt 0:01:48]} Bc1 {[%emt 0:02:22]} 43. Kg3 {[%emt 0:00:13]} Rc4 {[%emt 0:00:40]} 44. Ng1 {[%emt 0:04:16]} Rd3+ {[%emt 0:01:46]} 45. Rf3 {[%emt 0:06:33]} Rd1 {[%emt 0:01:35]} 0-1

[Event "14th Margaryan Memorial-GM 2024"]
[Site "Yerevan"]
[Date "2024.01.13"]
[Round "6.8"]
[White "Lomsadze, Davit"]
[Black "Rostomyan, Mikayel"]
[Result "0-1"]
[ECO "D02"]
[WhiteElo "2253"]
[BlackElo "2294"]
[Annotator "TA"]
[PlyCount "148"]
[EventDate "2024.01.08"]
[EventType "tourn"]
[EventCountry "ARM"]
[SourceTitle "playchess.com"]
[Source "ChessBase"]
[SourceQuality "1"]
[TimeControl "40/5400+30:1800+30"]

{[%evp 49,148,-21,-11,-29,-16,-56,-40,-74,-39,-48,-25,-79,-74,-91,-65,-72,-72,-84,-92,-126,-113,-193,-187,-256,-142,-180,-127,-124,-135,-127,-127,-200,-129,-105,-79,-66,-66,-73,-62,-62,-62,-106,-94,-139,-96,-110,-127,-164,-164,-164,-162,-388,-372,-499,-498,-528,-528,-523,-558,-598,-572,-656,-608,-586,-612,-586,-546,-620,-613,-625,-618,-619,-579,-653,-655,-615,-607,-1461,-1400,-2811,-2154,-1281,-865,-987,-991,-1172,-1171,-1175,-972,-854,-587,-1661,-2056,-5189,-4537,-29982,-29983,-29981,-29973,-29981,-29982]} 1. Nf3 {[%emt 0:00:02]} d5 {[%emt 0:00:31]} 2. g3 {[%emt 0:00:02]} Nc6 {[%emt 0:00:22]} 3. d4 {[%emt 0:00:13]} Bf5 {[%emt 0:00:38]} 4. Bg2 {[%emt 0:00:02]} Nb4 {[%emt 0:00:43]} 5. Na3 {[%emt 0:00:12]} e6 {[%emt 0:00:29]} 6. O-O {[%emt 0:00:46]} h6 {[%emt 0:00:38]} 7. c3 {[%emt 0:00:58]} Na6 {[%emt 0:01:30]} 8. Ne5 {[%emt 0:01:14]} c6 {[%emt 0:00:27]} 9. Nc2 {[%emt 0:02:18]} Nf6 {[%emt 0:01:06]} 10. f3 {[%emt 0:01:07]} Be7 {[%emt 0:01:38]} 11. e4 {[%emt 0:01:11]} Bh7 {[%emt 0:00:23]} 12. Qe2 {[%emt 0:00:29]} Nc7 {[%emt 0:00:46]} 13. Bf4 {[%emt 0:06:58]} O-O {[%emt 0:04:19]} 14. Rad1 {[%emt 0:00:04]} Nd7 {[%emt 0:01:56]} 15. Ng4 {[%emt 0:05:27]} a5 {[%emt 0:14:43]} 16. Bc1 {[%emt 0:00:51]} b5 {[%emt 0:03:10]} 17. Nce3 {[%emt 0:00:05]} f6 {[%emt 0:08:03]} 18. Nf2 {[%emt 0:02:30]} Nb6 {[%emt 0:07:08]} 19. f4 {[%emt 0:01:00]} Nc4 {[%emt 0:00:45]} 20. Nxc4 {[%emt 0:00:54]} bxc4 {[%emt 0:00:19]} 21. Rfe1 {[%emt 0:01:49]} Bd6 {[%emt 0:03:31]} 22. Qh5 {[%emt 0:03:01]} f5 {[%emt 0:06:17]} 23. exd5 {[%emt 0:01:02]} cxd5 {[%emt 0:01:07]} 24. Re2 {[%emt 0:07:16]} a4 {[%emt 0:01:04]} 25. a3 {[%emt 0:00:54]} Qf6 {[%emt 0:01:26]} 26. Rde1 {[%emt 0:00:17]} Bg6 {[%emt 0:01:35]} 27. Qf3 {[%emt 0:00:07]} Qf7 {[%emt 0:03:21]} 28. Qe3 {[%emt 0:02:58]} Bh5 {[%emt 0:01:21]} 29. Bf3 {[%emt 0:01:47]} Rae8 {[%emt 0:02:34]} 30. Kh1 {[%emt 0:01:42] [#]} (30. Bxh5 $11 Qxh5 31. Nd1) 30... Re7 $1 $17 {[%emt 0:01:24]} 31. Rg1 {[%emt 0:01:24]} Kh8 {[%emt 0:02:46]} 32. Ree1 {[%emt 0:08:18]} Ne8 {[%emt 0:03:24]} 33. g4 {[%emt 0:02:33]} fxg4 {[%emt 0:00:34]} 34. Bxg4 {[%emt 0:00:06] [#]} Nf6 $1 {[%emt 0:01:40]} (34... Bxf4 35. Qh3 g6 36. Bxh5 gxh5 37. Bxf4 Qxf4 38. Rxe6 Rxe6 39. Qxe6 $15) (34... Qxf4 35. Qxf4 Bxf4 36. Bxh5 $11) 35. Bh3 {[%emt 0:02:16]} (35. Ref1 $17) 35... Bg6 $19 {[%emt 0:08:07]} 36. Rgf1 {[%emt 0:09:43]} (36. Bxe6 $142 Qe8 37. Qg3) 36... Bf5 {[%emt 0:02:13]} ({Besser ist} 36... Nh5 $19 {[%cal Rd6f4]} 37. Qf3 Qe8 (37... Bxf4 $2 38. Bxf4 Nxf4 39. Ng4 $19)) 37. Bg2 {[%emt 0:00:27]} Ng4 {[%emt 0:02:10]} (37... Qe8 $19 38. Qf3 Bh7) 38. Nxg4 $17 {[%emt 0:00:46]} Bxg4 {[%emt 0:00:02]} 39. Bh3 {[%emt 0:01:27]} Bf5 {[%emt 0:00:43]} 40. Qg3 {[%emt 0:00:00]} (40. Bxf5 $17 exf5 (40... Qxf5 41. Qe2 $17) 41. Qh3) 40... Rfe8 {[%emt 0:00:00]} 41. Qh4 {[%emt 0:17:10]} Bxh3 {[%emt 0:21:07]} 42. Qxh3 {[%emt 0:00:02]} Qf5 {[%emt 0:00:11]} 43. Qf3 {[%emt 0:00:40]} Rf8 {[%emt 0:00:16]} 44. Qd1 {[%emt 0:00:08]} Ra7 {[%emt 0:01:37]} 45. Re2 {[%emt 0:02:40]} Rf6 {[%emt 0:00:44]} (45... g5 {wäre vielleicht verwirrender.} 46. Qc2 Qh3 47. Ref2 gxf4 48. Bxf4 Bxf4 49. Rxf4 Qxf1+ 50. Rxf1 Rxf1+ 51. Kg2 Rf5) 46. Rg2 {[%emt 0:01:18]} Rg6 {[%emt 0:01:41]} 47. Rxg6 {[%emt 0:00:11]} Qxg6 {[%emt 0:00:02]} 48. Qf3 {[%emt 0:03:14]} Rf7 {[%emt 0:00:19]} 49. h3 {[%emt 0:02:12]} Qf5 {[%emt 0:00:29]} 50. Qg4 $2 {[%emt 0:02:07]} (50. Kg2) 50... Qe4+ $19 {[%emt 0:01:14]} 51. Qg2 {[%emt 0:00:15]} g5 {[%emt 0:01:00]} (51... Bxf4 $2 {zu gefräßig.} 52. Qxe4 dxe4 53. Rxf4 $18 (53. Bxf4 e3 $18)) 52. Qxe4 {[%emt 0:03:30]} dxe4 {[%emt 0:00:21]} 53. Re1 {[%emt 0:00:06]} Bxf4 {[%emt 0:00:14]} ({Nicht} 53... gxf4 54. Rxe4 Rf6 55. Kg1 $11) 54. Bxf4 {[%emt 0:00:37]} Rxf4 {[%emt 0:00:06]} 55. Kg2 {[%emt 0:00:03]} Kg7 {[%emt 0:00:22]} 56. Rd1 {[%emt 0:00:05]} e3 {[%emt 0:01:37]} 57. Re1 {[%emt 0:00:01]} Rf2+ {[%emt 0:00:12]} 58. Kg3 {[%emt 0:00:01]} Rxb2 {[%emt 0:00:18]} 59. Rxe3 {[%emt 0:00:02]} Rb3 {[%emt 0:02:35]} 60. Rxe6 {[%emt 0:00:04]} Rxc3+ {[%emt 0:00:24]} 61. Kg4 {[%emt 0:00:08]} Rxa3 {[%emt 0:00:30]} 62. Rc6 {[%emt 0:00:16]} Rc3 {[%emt 0:02:12]} 63. d5 {[%emt 0:01:46]} a3 {[%emt 0:01:56]} 64. Kf5 {[%emt 0:00:09]} Rf3+ {[%emt 0:02:00]} 65. Ke4 {[%emt 0:00:45]} Rxh3 {[%emt 0:00:50]} 66. Ra6 {[%emt 0:01:50]} Rd3 {[%emt 0:06:07]} 67. Ra4 {[%emt 0:00:04]} Kg6 {[%emt 0:02:32]} 68. Rxc4 {[%emt 0:00:06]} a2 {[%emt 0:00:21]} 69. Ra4 {[%emt 0:00:06]} Rd2 {[%emt 0:00:11]} 70. Ke5 {[%emt 0:00:03]} Kh5 {[%emt 0:01:10]} 71. d6 {[%emt 0:00:08]} g4 {[%emt 0:00:17]} 72. Ke6 {[%emt 0:00:36]} g3 {[%emt 0:00:18]} 73. d7 {[%emt 0:00:03]} Rxd7 {[%emt 0:00:47]} 74. Rxa2 {[%emt 0:00:05]} Rg7 {[%emt 0:00:09]} 0-1